[Event "25th Zadar Open 2018"]
[Site "Zadar"]
[Date "2018.12.19"]
[Round "6.20"]
[White "Volotovsky, Kirill"]
[Black "Sinanovic, Muhamed"]
[Result "1-0"]
[ECO "A53"]
[WhiteElo "2179"]
[BlackElo "2325"]
[Annotator "ChessBase"]
[PlyCount "153"]
[EventDate "2018.12.15"]
[EventType "swiss"]
[EventCountry "CRO"]
[SourceTitle "playchess.com"]
[Source "ChessBase"]
[SourceQuality "1"]
[TimeControl "40/5400+30:1800+30"]

1. Nf3 {[%emt 0:06:30]} d6 {[%emt 0:01:30]} 2. d4 {[%emt 0:01:30]} Bg4 {[%emt 0:00:30]} 3. c4 {[%emt 0:03:30]} Nd7 {[%emt 0:05:30]} 4. Nc3 {[%emt 0:05:30]} e5 {[%emt 0:02:30]} 5. e3 {[%emt 0:08:30]} Ngf6 {[%emt 0:07:30]} 6. Be2 {[%emt 0:04:30]} Be7 {[%emt 0:01:30]} 7. O-O {[%emt 0:05:30]} O-O {[%emt 0:00:30]} 8. b3 {[%emt 0:00:00]} Re8 {[%emt 0:05:30]} 9. Bb2 {[%emt 0:01:00]} c6 {[%emt 0:02:30]} 10. Qc2 {[%emt 0:07:30]} Bf8 {[%emt 0:00:30]} 11. Rad1 {[%emt 0:09:30]} e4 {[%emt 0:06:30]} 12. Ng5 {[%emt 0:05:30]} Bxe2 {[%emt 0:02:30]} 13. Qxe2 {[%emt 0:00:30]} d5 {[%emt 0:00:30]} 14. f4 {[%emt 0:10:30]} a6 {[%emt 0:12:30]} 15. c5 {[%emt 0:08:37]} b6 {[%emt 0:04:30]} 16. b4 {[%emt 0:03:42]} Qc7 {[%emt 0:04:30]} 17. Nh3 {[%emt 0:01:01]} a5 {[%emt 0:00:00]} 18. a3 {[%emt 0:00:08]} axb4 {[%emt 0:01:00]} 19. axb4 {[%emt 0:00:02]} Reb8 {[%emt 0:00:30]} 20. Ra1 {[%emt 0:01:13]} bxc5 {[%emt 0:03:30]} 21. bxc5 {[%emt 0:00:10]} Qb7 {[%emt 0:02:30]} 22. Rxa8 {[%emt 0:01:25]} Rxa8 {[%emt 0:00:30]} 23. Ra1 {[%emt 0:02:28]} Be7 {[%emt 0:04:30]} 24. Rxa8+ {[%emt 0:02:50]} Qxa8 {[%emt 0:00:30]} 25. Nf2 {[%emt 0:01:17]} Bd8 {[%emt 0:01:30]} 26. Qc2 {[%emt 0:01:49]} Bc7 {[%emt 0:04:30]} 27. Qa4 {[%emt 0:01:29]} Qxa4 {[%emt 0:04:30]} 28. Nxa4 {[%emt 0:00:01]} Kf8 {[%emt 0:00:00]} 29. Bc3 {[%emt 0:00:32]} Ke7 {[%emt 0:00:00]} 30. Kf1 {[%emt 0:00:24]} Kd8 {[%emt 0:00:30]} 31. Ke2 {[%emt 0:00:42]} Kc8 {[%emt 0:00:00]} 32. Kd2 {[%emt 0:03:30]} Kb7 {[%emt 0:00:00]} 33. Kc2 {[%emt 0:00:29]} g6 {[%emt 0:03:30]} 34. Be1 {[%emt 0:00:47]} h5 {[%emt 0:03:08]} 35. Bd2 {[%emt 0:01:27]} Ng8 {[%emt 0:00:48]} 36. Nh3 {[%emt 0:01:30]} f6 {[%emt 0:00:46]} 37. Nc3 {[%emt 0:01:32]} Nh6 {[%emt 0:00:10]} 38. Nf2 {[%emt 0:00:43]} Nf5 {[%emt 0:00:53]} 39. g3 {[%emt 0:00:31]} Ka6 {[%emt 0:02:52]} 40. Nfd1 {[%emt 0:00:00]} g5 {[%emt 0:00:00]} 41. Ne2 {[%emt 0:05:11]} g4 {[%emt 0:09:23]} 42. Nf2 {[%emt 0:06:30]} Nh6 {[%emt 0:04:30]} 43. Nc3 {[%emt 0:01:30]} Nf8 {[%emt 0:03:30]} 44. Ne2 {[%emt 0:02:51]} Ng6 {[%emt 0:00:30]} 45. Nc3 {[%emt 0:00:29]} Ne7 {[%emt 0:01:30]} 46. Ne2 {[%emt 0:00:40]} Nef5 {[%emt 0:00:30]} 47. Nd1 {[%emt 0:00:14]} h4 {[%emt 0:00:30]} 48. Be1 {[%emt 0:00:36]} h3 {[%emt 0:00:30]} 49. Bd2 {[%emt 0:02:21]} Nf7 {[%emt 0:05:30]} 50. Nf2 {[%emt 0:00:13]} N5h6 {[%emt 0:00:30]} 51. Nd1 {[%emt 0:00:13]} Nd8 {[%emt 0:00:30]} 52. Nc1 {[%emt 0:03:34]} Nb7 {[%emt 0:00:30]} 53. Nb3 {[%emt 0:00:48]} f5 {[%emt 0:03:30]} 54. Bb4 {[%emt 0:01:52]} Ng8 {[%emt 0:00:30]} 55. Nc3 {[%emt 0:01:11]} Nf6 {[%emt 0:02:05]} 56. Ne2 {[%emt 0:00:16]} Bd8 {[%emt 0:02:44]} 57. Nc3 {[%emt 0:00:39]} Nh5 {[%emt 0:02:04]} 58. Ne2 {[%emt 0:00:05]} Ng7 {[%emt 0:05:41]} 59. Nc3 {[%emt 0:00:29]} Ne6 {[%emt 0:00:28]} 60. Ne2 {[%emt 0:01:01]} Nf8 {[%emt 0:00:10]} 61. Nc3 {[%emt 0:00:23]} Ng6 {[%emt 0:00:15]} 62. Ne2 {[%emt 0:00:16]} Kb5 {[%emt 0:01:15]} 63. Be1 {[%emt 0:00:10]} Bc7 {[%emt 0:03:00]} 64. Nc3+ {[%emt 0:00:11]} Ka6 {[%emt 0:00:02]} 65. Ne2 {[%emt 0:00:14]} Na5 {[%emt 0:01:09]} 66. Nxa5 {[%emt 0:00:06]} Bxa5 {[%emt 0:00:02]} 67. Bxa5 {[%emt 0:00:08]} Kxa5 {[%emt 0:00:02]} 68. Kb3 {[%emt 0:00:09]} Nf8 {[%emt 0:00:11]} 69. Nc3 {[%emt 0:00:52]} Ne6 {[%emt 0:00:31]} 70. Na4 {[%emt 0:01:11]} Nc7 {[%emt 0:01:23]} 71. Nb6 {[%emt 0:05:03]} Na6 {[%emt 0:03:38]} 72. Nc8 {[%emt 0:00:30]} Nb4 {[%emt 0:00:12]} 73. Ne7 {[%emt 0:00:17]} Nd3 {[%emt 0:00:58]} 74. Nxf5 {[%emt 0:02:20]} Nc1+ {[%emt 0:02:16]} 75. Kc2 {[%emt 0:00:04]} Ne2 {[%emt 0:00:00]} 76. Kd2 {[%emt 0:00:23]} Ng1 {[%emt 0:00:03]} 77. Nh4 {[%emt 0:00:04]} 1-0

[Event "25th Zadar Open 2018"]
[Site "Zadar"]
[Date "2018.12.20"]
[Round "7.7"]
[White "Tomazini, Zan"]
[Black "Salimova, Nurgyul"]
[Result "0-1"]
[ECO "C45"]
[WhiteElo "2437"]
[BlackElo "2377"]
[Annotator "ChessBase"]
[PlyCount "120"]
[EventDate "2018.12.15"]
[EventType "swiss"]
[EventCountry "CRO"]
[SourceTitle "playchess.com"]
[Source "ChessBase"]
[SourceQuality "1"]
[TimeControl "40/5400+30:1800+30"]

1. e4 {[%emt 0:00:30]} e5 {[%emt 0:00:30]} 2. Nf3 {[%emt 0:00:00]} Nc6 {[%emt 0:00:00]} 3. d4 {[%emt 0:00:00]} exd4 {[%emt 0:00:00]} 4. Nxd4 {[%emt 0:00:30]} Nf6 {[%emt 0:00:30]} 5. Nxc6 {[%emt 0:00:00]} bxc6 {[%emt 0:00:00]} 6. e5 {[%emt 0:00:00]} Qe7 {[%emt 0:00:00]} 7. Qe2 {[%emt 0:00:30]} Nd5 {[%emt 0:00:30]} 8. c4 {[%emt 0:00:00]} Nb6 {[%emt 0:00:30]} 9. Nd2 {[%emt 0:00:00]} Qe6 {[%emt 0:04:30]} 10. Qe4 {[%emt 0:03:30]} d5 {[%emt 0:11:30]} 11. exd6 {[%emt 0:00:30]} cxd6 {[%emt 0:02:30]} 12. Be2 {[%emt 0:03:30]} Qxe4 {[%emt 0:10:30]} 13. Nxe4 {[%emt 0:00:00]} Bf5 {[%emt 0:00:30]} 14. Ng3 {[%emt 0:05:00]} Be6 {[%emt 0:00:30]} 15. b3 {[%emt 0:00:30]} d5 {[%emt 0:00:30]} 16. cxd5 {[%emt 0:00:30]} Bb4+ {[%emt 0:01:30]} 17. Bd2 {[%emt 0:00:30]} Bxd2+ {[%emt 0:01:30]} 18. Kxd2 {[%emt 0:00:30]} O-O-O {[%emt 0:08:30]} 19. Ke1 {[%emt 0:07:30]} Bxd5 {[%emt 0:02:30]} 20. f3 {[%emt 0:01:30]} g6 {[%emt 0:03:30]} 21. Ba6+ {[%emt 0:02:30]} Kc7 {[%emt 0:00:30]} 22. Kf2 {[%emt 0:00:30]} Nd7 {[%emt 0:03:30]} 23. Rac1 {[%emt 0:03:30]} Kb6 {[%emt 0:00:30]} 24. Be2 {[%emt 0:00:30]} f5 {[%emt 0:04:30]} 25. Rhd1 {[%emt 0:02:30]} Ne5 {[%emt 0:08:30]} 26. Rc3 {[%emt 0:09:30]} h5 {[%emt 0:11:30]} 27. h4 {[%emt 0:03:30]} Bf7 {[%emt 0:09:59]} 28. Rxd8 {[%emt 0:12:30]} Rxd8 {[%emt 0:00:02]} 29. Ke3 {[%emt 0:00:30]} c5 {[%emt 0:02:34]} 30. Kf4 {[%emt 0:02:30]} Nc6 {[%emt 0:00:52]} 31. Rd3 {[%emt 0:15:30]} Nd4 {[%emt 0:00:45]} 32. Bf1 {[%emt 0:00:30]} Re8 {[%emt 0:04:39]} 33. Kg5 {[%emt 0:02:30]} Re1 {[%emt 0:01:31]} 34. f4 {[%emt 0:02:30]} Be8 {[%emt 0:01:37]} 35. b4 {[%emt 0:06:09]} Ne6+ {[%emt 0:02:43]} 36. Kf6 {[%emt 0:00:05]} Nxf4 {[%emt 0:00:13]} 37. bxc5+ {[%emt 0:05:59]} Kxc5 {[%emt 0:00:25]} 38. Rc3+ {[%emt 0:00:55]} Kd6 {[%emt 0:00:28]} 39. Ra3 {[%emt 0:01:25]} Nd5+ {[%emt 0:00:20]} 40. Kg5 {[%emt 0:00:00]} f4 {[%emt 0:00:00]} 41. Ra6+ {[%emt 0:05:57]} Ke5 {[%emt 0:05:22]} 42. Rxa7 {[%emt 0:09:30]} fxg3 {[%emt 0:00:30]} 43. Bc4 {[%emt 0:00:30]} Re4 {[%emt 0:00:30]} 44. Bb3 {[%emt 0:01:30]} Rg4+ {[%emt 0:00:30]} 45. Kh6 {[%emt 0:00:30]} Rxh4 {[%emt 0:00:30]} 46. Ra8 {[%emt 0:01:30]} Nc7 {[%emt 0:03:30]} 47. Ra5+ {[%emt 0:01:30]} Kf6 {[%emt 0:02:30]} 48. Rc5 {[%emt 0:02:30]} Ne6 {[%emt 0:01:30]} 49. Rc3 {[%emt 0:01:30]} Nd4 {[%emt 0:00:30]} 50. a4 {[%emt 0:02:29]} Nf5+ {[%emt 0:01:30]} 51. Kh7 {[%emt 0:00:05]} Bxa4 {[%emt 0:00:30]} 52. Bxa4 {[%emt 0:01:48]} Rxa4 {[%emt 0:00:00]} 53. Rc6+ {[%emt 0:00:04]} Ke5 {[%emt 0:00:00]} 54. Rxg6 {[%emt 0:01:00]} Ra7+ {[%emt 0:00:30]} 55. Kh8 {[%emt 0:00:06]} Ra2 {[%emt 0:00:00]} 56. Rb6 {[%emt 0:06:42]} Rxg2 {[%emt 0:01:00]} 57. Rb5+ {[%emt 0:00:07]} Kf4 {[%emt 0:00:30]} 58. Rb4+ {[%emt 0:00:08]} Kf3 {[%emt 0:00:30]} 59. Rb3+ {[%emt 0:00:04]} Ne3 {[%emt 0:00:00]} 60. Rb5 {[%emt 0:00:16]} Rh2 {[%emt 0:00:00]} 0-1

[Event "25th Zadar Open 2018"]
[Site "Zadar"]
[Date "2018.12.20"]
[Round "7.11"]
[White "Paszewski, Mateusz"]
[Black "Ivekovic, Bozidar"]
[Result "1-0"]
[ECO "B53"]
[WhiteElo "2342"]
[BlackElo "2406"]
[Annotator "NA"]
[PlyCount "78"]
[EventDate "2018.12.15"]
[EventType "swiss"]
[EventCountry "CRO"]
[SourceTitle "playchess.com"]
[Source "ChessBase"]
[SourceQuality "1"]
[TimeControl "40/5400+30:1800+30"]

1. e4 {[%emt 0:00:30]} c5 {[%emt 0:00:30]} 2. Nf3 {[%emt 0:00:00]} d6 {[%emt 0:00:30]} 3. d4 {[%emt 0:00:00]} cxd4 {[%emt 0:00:00]} 4. Qxd4 {[%emt 0:00:00]} a6 {[%emt 0:05:00]} 5. Be2 {[%emt 0:00:00] B53: Sicilian: 2...d6: Lines with Qxd4} Nf6 {[%emt 0:04:30]} 6. O-O {[%emt 0:00:30]} Nc6 {[%emt 0:05:30]} 7. Qe3 {[%emt 0:01:30]} e6 {[%emt 0:01:30]} 8. c4 {[%emt 0:06:30]} Be7 {[%emt 0:01:30]} 9. Nc3 {[%emt 0:04:30]} O-O {[%emt 0:00:30]} 10. h3 {[%emt 0:04:30]} Rb8 $146 {[%emt 0:11:30]} ({Predecessor:} 10... b6 11. Rd1 Qc7 12. b3 Bb7 {½-½ (32) Radjabov,T (2792)-Wojtaszek,R (2733) Eilat 2012}) 11. Rd1 {[%emt 0:05:30]} Qa5 {[%emt 0:03:30]} 12. Bd2 {[%emt 0:03:30]} Qc7 {[%emt 0:00:30]} 13. Rac1 {[%emt 0:01:30]} Ne5 {[%emt 0:09:30]} 14. b3 {[%emt 0:08:30]} Nxf3+ {[%emt 0:05:30]} 15. Qxf3 {[%emt 0:03:30]} b6 {[%emt 0:07:30]} 16. Qg3 {[%emt 0:01:30]} Nd7 {[%emt 0:09:30]} 17. Be3 {[%emt 0:12:30]} Re8 {[%emt 0:02:30]} 18. h4 {[%emt 0:02:30]} Bb7 {[%emt 0:07:30]} 19. h5 {[%emt 0:02:30]} Bf8 {[%emt 0:02:30]} 20. Bd4 {[%emt 0:02:30]} h6 {[%emt 0:00:30]} 21. Bd3 {[%emt 0:04:30]} Rbc8 {[%emt 0:02:29]} 22. Bb1 {[%emt 0:04:30]} Qc6 {[%emt 0:12:59]} 23. Qd3 {[%emt 0:04:30]} Nf6 $16 {[%emt 0:02:52]} 24. Nd5 {[%emt 0:09:27]} Nxh5 {[%emt 0:01:48]} 25. Nxb6 {[%emt 0:06:49]} Nf4 {[%emt 0:01:20]} 26. Qf3 {[%emt 0:00:43]} Rcd8 {[%emt 0:00:04]} 27. Qxf4 {[%emt 0:01:35]} e5 {[%emt 0:00:09]} 28. Qd2 {[%emt 0:00:18]} exd4 {[%emt 0:00:51]} 29. Qxd4 {[%emt 0:00:33]} g6 {[%emt 0:00:30]} 30. Nd5 {[%emt 0:00:14]} Bg7 {[%emt 0:00:03]} 31. Qd2 {[%emt 0:01:15]} Qc8 {[%emt 0:00:30]} 32. b4 {[%emt 0:03:29]} Qg4 {[%emt 0:01:19]} 33. c5 {[%emt 0:01:39]} Bxd5 {[%emt 0:00:57]} 34. exd5 {[%emt 0:00:00]} Qh4 {[%emt 0:00:08]} 35. g3 {[%emt 0:01:42]} Qh5 {[%emt 0:00:18]} 36. c6 {[%emt 0:00:50]} Re2 {[%emt 0:00:06]} 37. Qd3 {[%emt 0:00:33]} Rde8 {[%emt 0:01:15]} 38. Rf1 {[%emt 0:02:53]} R2e5 {[%emt 0:00:08]} 39. Kg2 {[%emt 0:01:17]} Rxd5 {[%emt 0:01:44]} 1-0

[Event "25th Zadar Open 2018"]
[Site "Zadar"]
[Date "2018.12.20"]
[Round "7.12"]
[White "Nester, Ihor"]
[Black "Nielsen, Hogni Egilstoft"]
[Result "1-0"]
[ECO "A30"]
[WhiteElo "2337"]
[BlackElo "2400"]
[Annotator "ChessBase"]
[PlyCount "117"]
[EventDate "2018.12.15"]
[EventType "swiss"]
[EventCountry "CRO"]
[SourceTitle "playchess.com"]
[Source "ChessBase"]
[SourceQuality "1"]
[TimeControl "40/5400+30:1800+30"]

1. Nf3 {[%emt 0:00:30]} Nf6 {[%emt 0:00:30]} 2. c4 {[%emt 0:00:30]} e6 {[%emt 0:00:30]} 3. g3 {[%emt 0:00:30]} b6 {[%emt 0:00:30]} 4. Bg2 {[%emt 0:00:00]} Bb7 {[%emt 0:00:00]} 5. O-O {[%emt 0:00:00]} c5 {[%emt 0:02:00]} 6. Nc3 {[%emt 0:00:30]} d6 {[%emt 0:01:30]} 7. d4 {[%emt 0:02:30]} cxd4 {[%emt 0:00:30]} 8. Qxd4 {[%emt 0:00:30]} Be7 {[%emt 0:03:30]} 9. Rd1 {[%emt 0:01:30]} a6 {[%emt 0:07:30]} 10. Bg5 {[%emt 0:06:30]} Nbd7 {[%emt 0:07:30]} 11. Nd2 {[%emt 0:04:30]} Bxg2 {[%emt 0:02:30]} 12. Kxg2 {[%emt 0:00:30]} Nc5 {[%emt 0:39:30]} 13. b4 {[%emt 0:07:30]} h6 {[%emt 0:00:30]} 14. Bxf6 {[%emt 0:01:30]} Bxf6 {[%emt 0:00:00]} 15. Qe3 {[%emt 0:00:30]} Nb7 {[%emt 0:03:00]} 16. Nde4 {[%emt 0:02:30]} Be7 {[%emt 0:00:30]} 17. Na4 {[%emt 0:09:30]} b5 {[%emt 0:02:30]} 18. Nac5 {[%emt 0:00:30]} Qc7 {[%emt 0:03:30]} 19. Nxb7 {[%emt 0:00:30]} Qxb7 {[%emt 0:00:30]} 20. Qf3 {[%emt 0:00:30]} Rb8 {[%emt 0:01:30]} 21. Nxd6+ {[%emt 0:03:30]} Bxd6 {[%emt 0:00:00]} 22. Rxd6 {[%emt 0:01:30]} bxc4 {[%emt 0:02:00]} 23. Qxb7 {[%emt 0:00:30]} Rxb7 {[%emt 0:00:30]} 24. Rxa6 {[%emt 0:01:30]} Ke7 {[%emt 0:01:30]} 25. a3 {[%emt 0:00:30]} Rc8 {[%emt 0:00:30]} 26. Rc1 {[%emt 0:00:30]} c3 {[%emt 0:04:17]} 27. Ra5 {[%emt 0:01:30]} c2 {[%emt 0:02:22]} 28. f4 {[%emt 0:08:30]} Rd7 {[%emt 0:05:32]} 29. Rc5 {[%emt 0:00:30]} Rxc5 {[%emt 0:00:06]} 30. bxc5 {[%emt 0:00:00]} Ra7 {[%emt 0:00:04]} 31. Rxc2 {[%emt 0:00:00]} Rxa3 {[%emt 0:00:05]} 32. c6 {[%emt 0:24:30]} Ra8 {[%emt 0:00:15]} 33. Rb2 {[%emt 0:01:30]} Kd6 {[%emt 0:04:49]} 34. Rb7 {[%emt 0:00:30]} Rf8 {[%emt 0:00:09]} 35. e4 {[%emt 0:00:00]} Kxc6 {[%emt 0:00:34]} 36. Ra7 {[%emt 0:00:00]} Kd6 {[%emt 0:02:42]} 37. e5+ {[%emt 0:00:30]} Kd5 {[%emt 0:01:30]} 38. Kf3 {[%emt 0:00:00]} h5 {[%emt 0:01:46]} 39. h3 {[%emt 0:03:13]} Kd4 {[%emt 0:02:08]} 40. Rd7+ {[%emt 0:00:00]} Kc5 {[%emt 0:00:00]} 41. Ke4 {[%emt 0:01:47]} Kc6 {[%emt 0:04:41]} 42. Re7 {[%emt 0:00:30]} Kc5 {[%emt 0:02:30]} 43. g4 {[%emt 0:05:30]} hxg4 {[%emt 0:09:23]} 44. hxg4 {[%emt 0:00:00]} g6 {[%emt 0:03:25]} 45. Kf3 {[%emt 0:04:00]} Kd5 {[%emt 0:03:22]} 46. Rd7+ {[%emt 0:00:30]} Kc6 {[%emt 0:00:46]} 47. Ra7 {[%emt 0:00:00]} Kd5 {[%emt 0:00:57]} 48. Rd7+ {[%emt 0:00:00]} Kc6 {[%emt 0:00:06]} 49. Re7 {[%emt 0:00:30]} Kc5 {[%emt 0:05:09]} 50. Kg3 {[%emt 0:00:30]} Kd5 {[%emt 0:00:50]} 51. Kh4 {[%emt 0:00:30]} Ke4 {[%emt 0:01:30]} 52. Kg5 {[%emt 0:00:30]} Kf3 {[%emt 0:00:32]} 53. Ra7 {[%emt 0:00:30]} Ke4 {[%emt 0:01:43]} 54. Ra4+ {[%emt 0:00:30]} Kf3 {[%emt 0:00:35]} 55. Ra7 {[%emt 0:05:30]} Ke4 {[%emt 0:00:05]} 56. Kf6 {[%emt 0:00:30]} Kxf4 {[%emt 0:03:05]} 57. Ra4+ {[%emt 0:00:00]} Kg3 {[%emt 0:00:31]} 58. Kg7 {[%emt 0:00:00]} Rb8 {[%emt 0:00:29]} 59. Kxf7 {[%emt 0:00:30]} 1-0

[Event "25th Zadar Open 2018"]
[Site "Zadar"]
[Date "2018.12.20"]
[Round "7.16"]
[White "Jakic, Ivan"]
[Black "Pallitsch, Clemens"]
[Result "1-0"]
[ECO "B48"]
[WhiteElo "2393"]
[BlackElo "2176"]
[Annotator "NA"]
[PlyCount "87"]
[EventDate "2018.12.15"]
[EventType "swiss"]
[EventCountry "CRO"]
[SourceTitle "playchess.com"]
[Source "ChessBase"]
[SourceQuality "1"]
[TimeControl "40/5400+30:1800+30"]

1. e4 {[%emt 0:00:30]} c5 {[%emt 0:00:30]} 2. Nf3 {[%emt 0:00:00]} e6 {[%emt 0:00:00]} 3. d4 {[%emt 0:00:00]} cxd4 {[%emt 0:00:00]} 4. Nxd4 {[%emt 0:00:30]} Nc6 {[%emt 0:00:30]} 5. Nc3 {[%emt 0:00:00]} Qc7 {[%emt 0:00:00]} 6. Be3 {[%emt 0:00:00] LiveBook: 7598 Games} a6 {[%emt 0:00:00]} 7. Qf3 {[%emt 0:01:30] B48: Sicilian: Taimanov: 5 Nc3 Qc7 6 Be3 a6 without Be2} Nf6 {[%emt 0:00:30]} 8. O-O-O {[%emt 0:00:30]} Be7 {[%emt 0:01:30]} (8... d6 9. Nxc6 Qxc6 10. g4 b5 11. g5 Nd7 12. a3 Bb7 13. Qh3 Rc8 14. g6 Nf6 {0-1 (55) Durarbayli,V (2629)-Cori Tello,J (2664) Saint Louis 2018}) 9. Be2 {[%emt 0:00:30]} O-O {[%emt 0:00:30]} 10. Qg3 {[%emt 0:00:30]} Qxg3 {[%emt 0:05:30]} 11. hxg3 {[%emt 0:00:00]} Ne5 {[%emt 0:01:30]} 12. f4 {[%emt 0:09:00]} Neg4 {[%emt 0:01:30]} 13. Bg1 {[%emt 0:00:00]} d6 {[%emt 0:03:30]} 14. Rh4 $146 {[%emt 0:01:00]} (14. Nb3 $16) ({Predecessor:} 14. Na4 Bd8 {½-½ (29) Goumas,G (2371)-Drakoulakos,G (2045) Rethymno 2014}) 14... e5 {[%emt 0:05:30]} 15. Nf5 {[%emt 0:20:30]} Bxf5 {[%emt 0:02:30]} 16. exf5 {[%emt 0:00:30]} h5 {[%emt 0:01:30]} 17. Bxg4 {[%emt 0:01:30]} hxg4 {[%emt 0:02:30]} 18. Be3 {[%emt 0:00:30]} g6 {[%emt 0:01:30]} 19. Rdh1 {[%emt 0:04:30]} (19. fxe5 $16 dxe5 20. Bg5) 19... Nh5 {[%emt 0:10:30]} ({Black should try} 19... gxf5 $14 20. fxe5 dxe5) 20. Rxg4 {[%emt 0:11:30]} Ng7 {[%emt 0:03:30]} (20... Nf6 $142 21. Rgh4 gxf5 22. fxe5 dxe5) 21. fxg6 {[%emt 0:04:30]} f5 {[%emt 0:02:30]} 22. Nd5 {[%emt 0:00:30]} Bd8 {[%emt 0:00:30]} 23. Rgh4 {[%emt 0:00:30]} Bxh4 {[%emt 0:00:30]} 24. Rxh4 {[%emt 0:00:30]} Rae8 {[%emt 0:01:30]} 25. c4 {[%emt 0:02:30]} (25. fxe5 $18 {is more deadly.} Rxe5 26. c4) 25... Re6 {[%emt 0:04:30]} 26. fxe5 {[%emt 0:01:30]} dxe5 {[%emt 0:04:30]} 27. Bc5 {[%emt 0:03:30]} Rc8 {[%emt 0:05:30]} (27... Rfe8 $14) 28. Ne7+ {[%emt 0:10:30]} Rxe7 {[%emt 0:00:00]} 29. Bxe7 {[%emt 0:00:00]} Rc6 {[%emt 0:00:00]} 30. c5 {[%emt 0:01:00]} Rxg6 {[%emt 0:00:30]} 31. Rb4 {[%emt 0:00:00]} Rxg3 {[%emt 0:09:30]} 32. Rxb7 {[%emt 0:00:00]} Rxg2 {[%emt 0:00:30]} 33. Bf6 {[%emt 0:06:30]} Ne6 {[%emt 0:00:30]} 34. c6 {[%emt 0:05:42]} f4 $14 {[%emt 0:05:30]} 35. Re7 {[%emt 0:01:30]} f3 {[%emt 0:07:30]} 36. Bh4 {[%emt 0:00:16]} Rg6 {[%emt 0:05:27]} 37. Kd2 {[%emt 0:04:54]} Nf4 {[%emt 0:04:02]} 38. c7 {[%emt 0:02:51]} Rd6+ {[%emt 0:04:15]} 39. Ke1 {[%emt 0:01:37]} Rc6 {[%emt 0:03:17]} 40. Re8+ {[%emt 0:00:00]} Kg7 {[%emt 0:00:00]} 41. c8=Q {[%emt 0:01:10]} Ng2+ {[%emt 0:00:59]} 42. Kf2 {[%emt 0:00:30]} Rxc8 {[%emt 0:00:30]} 43. Rxc8 {[%emt 0:00:30]} Nxh4 {[%emt 0:00:00]} 44. Rc4 {[%emt 0:01:30]} 1-0

[Event "25th Zadar Open 2018"]
[Site "Zadar"]
[Date "2018.12.20"]
[Round "7.17"]
[White "Krstulovic, Alex"]
[Black "Kurayan, Ruslan"]
[Result "1/2-1/2"]
[ECO "E99"]
[WhiteElo "2313"]
[BlackElo "2391"]
[Annotator "ChessBase"]
[PlyCount "108"]
[EventDate "2018.12.15"]
[EventType "swiss"]
[EventCountry "CRO"]
[SourceTitle "playchess.com"]
[Source "ChessBase"]
[SourceQuality "1"]
[TimeControl "40/5400+30:1800+30"]

1. d4 {[%emt 0:00:30]} Nf6 {[%emt 0:00:30]} 2. c4 {[%emt 0:00:00]} g6 {[%emt 0:00:30]} 3. Nc3 {[%emt 0:00:00]} Bg7 {[%emt 0:00:30]} 4. e4 {[%emt 0:00:00]} d6 {[%emt 0:00:00]} 5. Be2 {[%emt 0:00:00]} O-O {[%emt 0:00:00]} 6. Nf3 {[%emt 0:00:30]} e5 {[%emt 0:00:30]} 7. O-O {[%emt 0:00:00]} Nc6 {[%emt 0:00:00]} 8. d5 {[%emt 0:00:00]} Ne7 {[%emt 0:00:00]} 9. Ne1 {[%emt 0:00:30]} Nd7 {[%emt 0:00:30]} 10. f3 {[%emt 0:00:00]} f5 {[%emt 0:00:00]} 11. Be3 {[%emt 0:00:00]} f4 {[%emt 0:01:00]} 12. Bf2 {[%emt 0:00:00]} g5 {[%emt 0:00:30]} 13. Nb5 {[%emt 0:00:00]} b6 {[%emt 0:17:30]} 14. b4 {[%emt 0:00:30]} Nf6 {[%emt 0:33:30]} 15. a4 {[%emt 0:02:30]} a5 {[%emt 0:18:30]} 16. bxa5 {[%emt 0:00:30]} Rxa5 {[%emt 0:00:00]} 17. Nd3 {[%emt 0:02:30]} g4 {[%emt 0:04:00]} 18. Be1 {[%emt 0:04:30]} Ra6 {[%emt 0:00:30]} 19. a5 {[%emt 0:03:30]} bxa5 {[%emt 0:04:21]} 20. c5 {[%emt 0:06:30]} gxf3 {[%emt 0:04:32]} 21. Bxf3 {[%emt 0:13:30]} Nexd5 {[%emt 0:01:37]} 22. Qb3 {[%emt 0:19:30]} Kh8 {[%emt 0:03:24]} 23. Bxa5 {[%emt 0:06:30]} Rxa5 {[%emt 0:00:59]} 24. Rxa5 {[%emt 0:00:30]} Ne3 {[%emt 0:07:27]} 25. Rfa1 {[%emt 0:00:30]} d5 {[%emt 0:01:07]} 26. Ra8 {[%emt 0:11:30]} dxe4 {[%emt 0:00:29]} 27. Nxe5 {[%emt 0:00:30]} exf3 {[%emt 0:00:46]} 28. Nf7+ {[%emt 0:01:30]} Rxf7 {[%emt 0:00:01]} 29. Qxf7 {[%emt 0:00:00]} f2+ {[%emt 0:00:36]} 30. Kh1 {[%emt 0:00:00]} f1=Q+ {[%emt 0:00:23]} 31. Rxf1 {[%emt 0:00:30]} Nxf1 {[%emt 0:00:05]} 32. Nd6 {[%emt 0:01:30]} cxd6 {[%emt 0:00:27]} 33. cxd6 {[%emt 0:00:30]} h5 {[%emt 0:01:40]} 34. Qc7 {[%emt 0:00:30]} Qd7 {[%emt 0:00:34]} 35. Rxc8+ {[%emt 0:05:30]} Kh7 {[%emt 0:00:04]} 36. Qxd7 {[%emt 0:08:25]} Nxd7 {[%emt 0:00:01]} 37. Rc7 {[%emt 0:00:57]} Ne5 {[%emt 0:00:56]} 38. Re7 {[%emt 0:00:01]} Nc6 {[%emt 0:00:44]} 39. Rc7 {[%emt 0:01:30]} Nd8 {[%emt 0:00:31]} 40. Rd7 {[%emt 0:00:00]} Ne6 {[%emt 0:00:00]} 41. Re7 {[%emt 0:02:07]} Nd8 {[%emt 0:19:43]} 42. Rd7 {[%emt 0:00:30]} Nc6 {[%emt 0:00:06]} 43. Rc7 {[%emt 0:00:30]} Ne5 {[%emt 0:00:22]} 44. Re7 {[%emt 0:01:30]} Ne3 {[%emt 0:00:44]} 45. d7 {[%emt 0:01:30]} Nc6 {[%emt 0:00:32]} 46. Re8 {[%emt 0:00:30]} Nf5 {[%emt 0:00:18]} 47. Rc8 {[%emt 0:02:30]} Nfd4 {[%emt 0:00:37]} 48. d8=Q {[%emt 0:00:00]} Nxd8 {[%emt 0:00:02]} 49. Rxd8 {[%emt 0:00:00]} Kg6 {[%emt 0:01:57]} 50. Kg1 {[%emt 0:04:30]} Kf5 {[%emt 0:03:13]} 51. Kf2 {[%emt 0:04:30]} Kg4 {[%emt 0:00:54]} 52. g3 {[%emt 0:05:30]} f3 {[%emt 0:06:51]} 53. Rg8 {[%emt 0:00:30]} Ne6 {[%emt 0:00:04]} 54. h4 {[%emt 0:00:30]} Kf5 {[%emt 0:01:39]} 1/2-1/2